bitfinex/quotes_BTCUSD_20250529
["timestamp","ask_amount","ask_price","bid_price","bid_amount"]
[1748494356133,0.00930942,107410.0,107400.0,2.09357117]
[1748494356581,0.03723864,107410.0,107400.0,2.09357117]
[1748494357031,0.03723864,107410.0,107400.0,2.09557117]
[1748494357251,0.03723864,107410.0,107400.0,2.09757117]
[1748494358195,0.0279287,107410.0,107400.0,2.09757117]
[1748494358378,0.02792731,107420.0,107410.0,0.58433162]
[1748494358600,0.18618506,107430.0,107420.0,0.0302]
[1748494358828,0.18618506,107430.0,107420.0,0.34214832]
[1748494359060,0.18618506,107430.0,107420.0,0.3248]
[1748494359704,0.18618506,107430.0,107420.0,0.34214615]
[1748494359912,0.18518506,107430.0,107420.0,0.40414278]
[1748494360137,0.18518506,107430.0,107420.0,0.4214861]
[1748494360353,0.18518506,107430.0,107420.0,0.40414278]
[1748494361473,0.18518506,107430.0,107420.0,0.42148314]
[1748494361729,0.18518506,107430.0,107420.0,0.40414278]
[1748494361967,0.19449344,107430.0,107420.0,0.40414278]
[1748494362672,0.19449344,107430.0,107420.0,0.42147967]
[1748494362913,0.19449344,107430.0,107420.0,0.42147593]
[1748494363399,0.19449344,107430.0,107420.0,0.40414278]
[1748494363647,0.19449344,107430.0,107420.0,0.42147593]
[1748494363889,0.19449344,107430.0,107420.0,0.40414278]
[1748494364934,0.19449344,107430.0,107420.0,0.42147176]
[1748494365206,0.19449344,107430.0,107420.0,0.53238278]
[1748494365453,0.19449344,107430.0,107420.0,0.45304]
[1748494365695,0.17449344,107430.0,107420.0,0.44016741]
[1748494365926,0.17449344,107430.0,107420.0,0.2946]
[1748494366595,0.17449344,107430.0,107420.0,0.31192875]
[1748494367056,0.17449344,107430.0,107420.0,0.40298766]
[1748494367499,0.17449344,107430.0,107420.0,0.38565395]
[1748494367747,0.17449344,107430.0,107420.0,0.31193468]
[1748494367949,0.17449344,107430.0,107420.0,0.31193714]
[1748494368381,0.17449344,107430.0,107420.0,0.31194201]
[1748494368854,0.17449344,107430.0,107420.0,0.31194628]
[1748494369285,0.17449344,107430.0,107420.0,0.31195113]
[1748494369504,0.17449344,107430.0,107420.0,0.31195099]
[1748494369740,0.52685344,107430.0,107420.0,0.31195098]
[1748494369961,0.52685344,107430.0,107420.0,0.31195113]
[1748494370173,0.52685344,107430.0,107420.0,0.2946]
[1748494370394,0.52685344,107430.0,107420.0,0.31195609]
[1748494371047,0.52685344,107430.0,107420.0,0.31195798]
[1748494372002,0.52685344,107430.0,107420.0,0.31195894]
[1748494372667,0.50685344,107430.0,107420.0,0.31195894]
[1748494372888,0.50685344,107430.0,107420.0,0.31195883]
[1748494373330,0.50685344,107430.0,107420.0,0.31195975]
[1748494373770,0.50685344,107430.0,107420.0,0.31195967]
[1748494374191,0.50685344,107430.0,107420.0,0.38998209]
[1748494374848,0.50685344,107430.0,107420.0,0.31196228]
[1748494375272,0.50685344,107430.0,107420.0,0.2946]
[1748494375502,0.50685344,107430.0,107420.0,0.31196494]
[1748494375721,0.50685344,107430.0,107420.0,0.31196493]
[1748494375935,0.50653344,107430.0,107420.0,0.31196493]
[1748494376151,0.50653344,107430.0,107420.0,0.38998542]
[1748494376616,0.50653344,107430.0,107420.0,0.38998664]
[1748494376845,0.50653344,107430.0,107420.0,0.37262049]
[1748494377069,0.50653344,107430.0,107420.0,0.38998838]
[1748494377287,0.50653344,107430.0,107420.0,0.3899887]
[1748494377757,0.50653344,107430.0,107420.0,0.31196821]
[1748494377973,0.15449344,107430.0,107420.0,0.34396741]
[1748494378207,0.15449344,107430.0,107420.0,0.34396791]
[1748494378430,0.15449344,107430.0,107420.0,0.34396898]
[1748494378645,0.15449344,107430.0,107420.0,0.43502293]
[1748494379092,0.15449344,107430.0,107420.0,0.34396898]
[1748494379312,0.15449344,107430.0,107420.0,0.3266]
[1748494379530,0.15449344,107430.0,107420.0,0.34396901]
[1748494379764,0.15449344,107430.0,107420.0,0.44020905]
[1748494379988,0.15449344,107430.0,107420.0,0.44020944]
[1748494380215,0.15449344,107430.0,107420.0,0.44021132]
[1748494380433,0.15449344,107430.0,107420.0,0.4402203]
[1748494380664,0.15449344,107430.0,107420.0,0.42284]
[1748494380882,0.24554739,107430.0,107420.0,0.4402203]
[1748494381107,0.22554739,107430.0,107420.0,0.48424312]
[1748494381333,0.22554739,107430.0,107420.0,0.45484]
[1748494382007,0.22554739,107430.0,107420.0,0.47222016]
[1748494382674,0.13449344,107430.0,107420.0,0.47222016]
[1748494382894,0.13449344,107430.0,107420.0,0.45567811]
[1748494384245,0.13449344,107430.0,107420.0,0.45567823]
[1748494385594,0.13449344,107430.0,107420.0,0.45567824]
[1748494386055,0.13449344,107430.0,107420.0,0.45567847]
[1748494386770,0.13449344,107430.0,107420.0,0.45567868]
[1748494387420,0.13449344,107430.0,107420.0,0.45567887]
[1748494387634,0.13449344,107430.0,107420.0,0.43824]
[1748494387868,0.13449344,107430.0,107420.0,0.51450246]
[1748494388100,0.13449344,107430.0,107420.0,0.80193135]
[1748494388340,0.11449344,107430.0,107420.0,0.81936931]
[1748494388534,0.11449344,107430.0,107420.0,0.51450196]
[1748494388743,0.11449344,107430.0,107420.0,0.497064]
[1748494388957,0.11449344,107430.0,107420.0,0.51450208]
[1748494389178,0.11449344,107430.0,107420.0,0.45324]
[1748494389389,0.11449344,107430.0,107420.0,0.47067802]
[1748494390050,0.11449344,107430.0,107420.0,0.47067781]
[1748494390267,0.11449344,107430.0,107420.0,0.96173022]
[1748494390491,0.12380156,107430.0,107420.0,1.05278417]
[1748494390744,0.15545783,107440.0,107430.0,0.00930838]
[1748494391000,0.02792342,107430.0,107420.0,0.79725538]
[1748494391221,0.22340005,107430.0,107420.0,1.52686565]
[1748494391441,0.03723232,107430.0,107420.0,1.48713035]
[1748494391665,0.03723232,107430.0,107420.0,0.84650789]
[1748494391880,0.03723232,107430.0,107420.0,0.83719925]
[1748494392113,0.01861564,107430.0,107420.0,0.84650781]
[1748494392334,0.02792385,107430.0,107420.0,1.12463427]
[1748494392549,0.02792385,107430.0,107420.0,1.15593583]
[1748494392773,0.00930769,107430.0,107420.0,1.14662731]
[1748494392998,0.02792342,107430.0,107420.0,0.95143108]
[1748494393268,0.02792342,107430.0,107420.0,0.95343108]
[1748494393459,0.03723163,107430.0,107420.0,1.35542991]
[1748494393680,0.02792351,107430.0,107420.0,1.35542991]
[1748494393914,0.01861547,107430.0,107420.0,1.33801579]
[1748494394158,0.04654001,107430.0,107420.0,1.66028747]
[1748494394397,0.04654001,107430.0,107420.0,1.35542034]
[1748494394635,0.03723163,107430.0,107420.0,1.35541376]
[1748494394879,0.03723154,107430.0,107420.0,1.26028175]
[1748494395117,0.03861286,107450.0,107440.0,0.25120585]
[1748494395343,0.21543964,107450.0,107440.0,0.96608387]
[1748494395566,0.20613308,107450.0,107440.0,0.80975884]
[1748494395798,0.20613308,107450.0,107440.0,1.00643282]
[1748494395799,0.0293063,107450.0,107440.0,1.00643282]
[1748494396020,0.04791891,107450.0,107440.0,1.00643299]
[1748494396243,0.05722547,107450.0,107440.0,1.03312891]
[1748494396474,0.05722547,107450.0,107440.0,1.01573999]
[1748494396695,0.05722547,107450.0,107440.0,1.30911483]
[1748494396914,0.05722547,107450.0,107440.0,1.26997547]
[1748494397170,0.05722547,107450.0,107440.0,0.98468255]
[1748494397389,0.05722547,107450.0,107440.0,0.97660728]
[1748494397609,0.05722547,107450.0,107440.0,0.99398958]
[1748494397824,0.02,107450.0,107440.0,1.83979283]
[1748494398280,0.02,107450.0,107440.0,1.83978972]
[1748494398509,0.02,107450.0,107440.0,1.84178948]
[1748494398784,0.02,107450.0,107440.0,1.8417888]
[1748494399004,0.02,107450.0,107440.0,2.2437888]
[1748494399259,0.02,107450.0,107440.0,2.22641053]
[1748494399498,0.02,107450.0,107440.0,2.2417756]
[1748494399781,0.02,107450.0,107440.0,2.22641053]
[1748494400017,0.02,107450.0,107440.0,2.24776502]
[1748494400262,0.02,107450.0,107440.0,2.23041053]
[1748494400511,0.02,107450.0,107440.0,2.24776422]
[1748494400785,0.02,107450.0,107440.0,2.23041053]
[1748494401067,0.02,107450.0,107440.0,2.24775371]
[1748494401332,0.02,107450.0,107440.0,2.2477535]
[1748494401853,0.02,107450.0,107440.0,2.24774539]
[1748494402095,0.02,107450.0,107440.0,1.63801032]
[1748494402354,0.05722522,107450.0,107440.0,1.30635666]
[1748494402573,0.03861209,107450.0,107440.0,1.97128967]
[1748494402820,0.02930587,107450.0,107440.0,1.75747656]
[1748494403060,0.02930587,107450.0,107440.0,2.06234334]
[1748494403061,0.03861191,107450.0,107440.0,2.06234334]
[1748494403302,0.03861191,107450.0,107440.0,2.40234325]
[1748494403544,0.03861191,107450.0,107440.0,1.08704919]
[1748494403545,0.22474621,107450.0,107440.0,1.08704919]
[1748494403786,0.22474621,107450.0,107440.0,1.3560231]
[1748494404017,0.21543973,107450.0,107440.0,1.27127691]
[1748494404256,0.21543973,107450.0,107440.0,1.28989163]
[1748494404485,0.21543973,107450.0,107440.0,1.63500717]
[1748494404716,0.21543973,107450.0,107440.0,1.62046632]
[1748494404969,0.21543973,107450.0,107440.0,1.30221735]
[1748494405206,0.21543973,107450.0,107440.0,0.40992]
[1748494405444,0.21543973,107450.0,107440.0,0.55457636]
[1748494405921,0.21543973,107450.0,107440.0,0.55457929]
[1748494406149,0.23103973,107450.0,107440.0,0.55457926]
[1748494406386,0.23103973,107450.0,107440.0,0.55457918]
[1748494406622,0.21543973,107450.0,107440.0,0.61003728]
[1748494406859,0.21543973,107450.0,107440.0,0.61003649]
[1748494407110,0.21543973,107450.0,107440.0,0.59269793]
[1748494407346,0.21543973,107450.0,107440.0,0.61003593]
[1748494407775,0.21543973,107450.0,107440.0,0.60919793]
[1748494407776,0.21543973,107450.0,107440.0,0.62653608]
[1748494408227,0.21543973,107450.0,107440.0,0.57107815]
[1748494408461,0.21543973,107450.0,107440.0,0.55457815]
[1748494408697,0.21543973,107450.0,107440.0,0.55458241]
[1748494408945,0.21543973,107450.0,107440.0,0.53724]
[1748494409169,0.21543973,107450.0,107440.0,0.8491824]
[1748494410659,0.21543973,107450.0,107440.0,0.84918726]
[1748494410885,0.24623973,107450.0,107440.0,0.84918731]
[1748494411105,0.24623973,107450.0,107440.0,0.84918784]
[1748494411324,0.24623973,107450.0,107440.0,0.83184]
[1748494411555,0.24623973,107450.0,107440.0,0.84918773]
[1748494411987,0.24623973,107450.0,107440.0,0.84918957]
[1748494412199,0.24623973,107450.0,107440.0,0.84919049]
[1748494412458,0.24623973,107450.0,107440.0,0.83184]
[1748494412698,0.24623973,107450.0,107440.0,0.93237467]
[1748494412929,0.21543973,107450.0,107440.0,0.83184]
[1748494413391,0.21543973,107450.0,107440.0,0.84919227]
[1748494413814,0.24603973,107450.0,107440.0,0.84919231]
[1748494414085,0.24603973,107450.0,107440.0,0.83184]
[1748494414302,0.23083973,107450.0,107440.0,0.84919355]
[1748494414525,0.23083973,107450.0,107440.0,0.83184]
[1748494414747,0.23083973,107450.0,107440.0,0.93411293]
[1748494414980,0.68841368,107450.0,107440.0,0.72187363]
[1748494415211,0.68841368,107450.0,107440.0,0.70452]
[1748494415674,0.68841368,107450.0,107440.0,0.72187672]
[1748494415895,0.68841368,107450.0,107440.0,0.31995672]
[1748494416115,0.77946763,107450.0,107440.0,0.3026]
[1748494416826,0.77946763,107450.0,107440.0,0.2986]
[1748494417073,0.68841368,107450.0,107440.0,0.3006]
[1748494417309,0.68841368,107450.0,107440.0,0.2986]
[1748494417541,0.68841368,107450.0,107440.0,0.2956]
[1748494417792,0.33809368,107450.0,107440.0,0.2956]
[1748494418026,0.33809368,107450.0,107440.0,0.2976]
[1748494418027,0.68829368,107450.0,107440.0,0.2976]
[1748494418457,0.68829368,107450.0,107440.0,0.2956]
[1748494418672,0.77934763,107450.0,107440.0,0.2956]
[1748494418887,0.77934763,107450.0,107440.0,0.2966]
[1748494418888,0.68829368,107450.0,107440.0,0.2966]
[1748494419558,0.68829368,107450.0,107440.0,0.002]
[1748494420220,1.02829368,107450.0,107440.0,0.002]
[1748494421347,1.02829368,107450.0,107440.0,0.001]
[1748494421348,0.67809368,107450.0,107440.0,0.001]
[1748494421560,1.02821368,107450.0,107440.0,0.001]
[1748494422273,0.20478389,107430.0,107420.0,0.4371]
[1748494422496,0.29583784,107430.0,107420.0,0.50938233]
[1748494422718,0.20478389,107430.0,107420.0,0.81100563]
[1748494423241,0.18478389,107430.0,107420.0,0.81100563]
[1748494423465,0.01861616,107430.0,107420.0,0.81100563]
[1748494423702,0.18616518,107440.0,107430.0,0.0317]
[1748494423703,0.20478013,107440.0,107430.0,0.0317]
[1748494423921,0.20478013,107440.0,107430.0,0.66992763]
[1748494424366,0.20478013,107440.0,107430.0,0.88275696]
[1748494424597,0.1954727,107440.0,107430.0,0.68728085]
[1748494424838,0.1954727,107440.0,107430.0,0.68727996]
[1748494425052,0.1954727,107440.0,107430.0,0.66992763]
[1748494425267,0.1954727,107440.0,107430.0,0.68827996]
[1748494425704,0.1954727,107440.0,107430.0,0.68927996]
[1748494425937,0.1954727,107440.0,107430.0,0.68927992]
[1748494426158,0.1954727,107440.0,107430.0,0.70826469]
[1748494426608,0.1954727,107440.0,107430.0,0.63300807]
[1748494426835,0.1954727,107440.0,107430.0,0.6503624]
[1748494427051,0.1954727,107440.0,107430.0,0.65036052]
[1748494427928,0.1954727,107440.0,107430.0,0.6503626]
[1748494428608,0.1954727,107440.0,107430.0,0.65036256]
[1748494428836,0.1954727,107440.0,107430.0,0.74142064]
[1748494429061,0.1954727,107440.0,107430.0,0.65036669]
[1748494429308,0.1954727,107440.0,107430.0,0.34565891]
[1748494429530,0.1954727,107440.0,107430.0,0.63300807]
[1748494430020,0.1954727,107440.0,107430.0,0.002]
[1748494430021,0.65892665,107440.0,107430.0,0.002]
[1748494430230,1.13637133,107440.0,107430.0,0.002]
[1748494430451,1.15331133,107440.0,107430.0,0.002]
[1748494430635,1.1266806,107440.0,107430.0,0.002]
[1748494431108,1.1266806,107440.0,107430.0,0.001]
[1748494431533,1.03562665,107440.0,107430.0,0.001]
[1748494431759,0.20482202,107410.0,107400.0,0.64582824]
[1748494431974,0.20482202,107410.0,107400.0,0.67890109]
[1748494432195,0.20482202,107410.0,107400.0,0.55230109]
[1748494432419,0.20482202,107410.0,107400.0,0.67890109]
[1748494432873,0.20482202,107410.0,107400.0,0.67890133]
[1748494433120,0.20482202,107410.0,107400.0,0.68290141]
[1748494433346,0.20482202,107410.0,107400.0,0.62572152]
[1748494433586,0.20482202,107410.0,107400.0,0.75134837]
[1748494434227,0.20482202,107410.0,107400.0,0.75534837]
[1748494434452,0.20482202,107410.0,107400.0,0.77272475]
[1748494435119,0.20482202,107410.0,107400.0,0.77272241]
[1748494435330,0.20482202,107410.0,107400.0,0.77272248]
[1748494435538,0.20482202,107410.0,107400.0,0.75534837]
[1748494435754,0.20482202,107410.0,107400.0,1.11272075]
[1748494435979,0.20482202,107410.0,107400.0,1.09534837]
[1748494436230,0.20482202,107410.0,107400.0,1.11272079]
[1748494436461,0.20482202,107410.0,107400.0,1.11272078]
[1748494436921,0.20482202,107410.0,107400.0,1.11271946]
[1748494437155,0.20482202,107410.0,107400.0,1.11271935]
[1748494437630,0.20482202,107410.0,107400.0,1.12203037]
[1748494437851,0.20482202,107410.0,107400.0,1.13134127]
[1748494438061,0.18482202,107410.0,107400.0,1.13134127]
[1748494438309,0.19413196,107410.0,107400.0,1.11271973]
[1748494438733,0.19413196,107410.0,107400.0,1.12203136]
[1748494439152,0.19413196,107410.0,107400.0,1.12203134]
[1748494439543,0.19413196,107410.0,107400.0,1.12203165]
[1748494440041,0.19413196,107410.0,107400.0,1.11272067]
[1748494440253,0.19413196,107410.0,107400.0,1.11272147]
[1748494440687,0.19413196,107410.0,107400.0,1.08062254]
[1748494440930,0.19413196,107410.0,107400.0,0.99382824]
[1748494441205,0.19413196,107410.0,107400.0,1.01120348]
[1748494441457,0.19413196,107410.0,107400.0,1.21272325]
[1748494441726,0.02792948,107410.0,107400.0,1.5334377]
[1748494442031,0.21413188,107410.0,107400.0,1.33859873]
[1748494442447,0.21413188,107410.0,107400.0,1.33859876]
[1748494442708,0.2048222,107410.0,107400.0,1.31997723]
[1748494442943,0.2048222,107410.0,107400.0,1.31191273]
[1748494443178,0.2048222,107410.0,107400.0,1.32929047]
[1748494443875,0.2048222,107410.0,107400.0,1.33860119]
[1748494444101,0.2048222,107410.0,107400.0,1.33860258]
[1748494444313,0.2048222,107410.0,107400.0,1.32122345]
[1748494444544,0.2048222,107410.0,107400.0,1.61582345]
[1748494445001,0.2048222,107410.0,107400.0,1.63320392]
[1748494445245,0.1848222,107410.0,107400.0,1.63320392]
[1748494445965,0.1848222,107410.0,107400.0,1.63320385]
[1748494446459,0.1848222,107410.0,107400.0,1.63320392]
[1748494446698,0.1848222,107410.0,107400.0,1.63320471]
[1748494446918,0.1848222,107410.0,107400.0,1.63320317]
[1748494447569,0.1848222,107410.0,107400.0,1.63320347]
[1748494447808,0.1848222,107410.0,107400.0,1.63320374]
[1748494448040,0.1848222,107410.0,107400.0,1.64251414]
[1748494448266,0.1848222,107410.0,107400.0,1.62389271]
[1748494448478,0.1848222,107410.0,107400.0,1.42836381]
[1748494448701,0.1848222,107410.0,107400.0,1.33730866]
[1748494449154,0.1848222,107410.0,107400.0,1.19450866]
[1748494449378,0.1848222,107410.0,107400.0,1.33665039]
[1748494449608,0.19551243,107410.0,107400.0,1.52257434]
[1748494449825,0.27724978,107430.0,107410.0,0.20481513]
[1748494450041,0.1752571,107440.0,107430.0,0.21766773]
[1748494450042,0.18624232,107440.0,107430.0,0.21766773]
[1748494450256,9.192e-05,107440.0,107430.0,1.26400073]
[1748494450486,9.192e-05,107440.0,107430.0,1.3238427]
[1748494450712,9.192e-05,107440.0,107430.0,1.37697115]
[1748494450948,9.192e-05,107440.0,107430.0,1.4680251]
[1748494451176,9.192e-05,107440.0,107430.0,1.4506481]
[1748494451392,0.02,107450.0,107440.0,0.87146491]
[1748494451635,0.0085808,107460.0,107450.0,0.53144498]
[1748494451851,0.0085808,107460.0,107450.0,1.26574265]
[1748494452076,0.0085808,107460.0,107450.0,0.99836796]
[1748494452538,0.0085808,107460.0,107450.0,1.01288506]
[1748494452742,0.0085808,107460.0,107450.0,1.01288493]
[1748494452967,0.11161274,107490.0,107480.0,0.3725]
[1748494453192,0.11161266,107490.0,107480.0,1.76750381]
[1748494453425,0.01860524,107490.0,107480.0,1.77680726]
[1748494453657,0.00979656,107490.0,107480.0,2.16959901]
[1748494453879,0.00049407,107490.0,107480.0,2.28459873]
[1748494454113,0.00049407,107490.0,107480.0,1.94375555]
[1748494454352,0.00049407,107490.0,107480.0,1.96106169]
[1748494455087,0.00049407,107490.0,107480.0,1.96205956]
[1748494455334,0.00049407,107490.0,107480.0,1.94675555]
[1748494455583,0.00049407,107490.0,107480.0,1.96405942]
[1748494455836,0.00049407,107490.0,107480.0,1.96403455]
[1748494456331,0.00049407,107490.0,107480.0,1.96403303]
[1748494456838,0.00049407,107490.0,107480.0,1.96400664]
[1748494457068,0.00049407,107490.0,107480.0,2.36400664]
[1748494457538,0.00049407,107490.0,107480.0,2.36398921]
[1748494458168,0.0161303,107500.0,107490.0,0.8853003]
[1748494458381,0.01626816,107500.0,107490.0,1.03271653]
[1748494458618,0.01626816,107500.0,107490.0,1.03270079]
[1748494458836,0.01626816,107500.0,107490.0,1.032696]
[1748494459048,0.01626816,107500.0,107490.0,1.41548696]
[1748494459496,0.01726816,107500.0,107490.0,1.13019984]
[1748494459710,0.01726816,107500.0,107490.0,1.41548696]
[1748494460380,0.0358722,107500.0,107490.0,0.91889619]
[1748494460625,0.03587168,107500.0,107490.0,1.89331715]
[1748494460842,0.04517374,107500.0,107490.0,1.87610611]
[1748494461064,0.03587168,107500.0,107490.0,1.89064696]
[1748494461281,0.03587168,107500.0,107490.0,1.43369547]
[1748494461282,0.02656979,107500.0,107490.0,1.43369547]
[1748494461501,0.04517339,107500.0,107490.0,1.90781561]
[1748494461710,0.05447545,107500.0,107490.0,1.90781577]
[1748494461929,0.05447545,107500.0,107490.0,1.54315415]
[1748494462142,0.05447545,107500.0,107490.0,1.87422696]
[1748494462582,0.05447545,107500.0,107490.0,1.8914325]
[1748494462831,0.0637776,107500.0,107490.0,1.88842486]
[1748494463043,0.0637776,107500.0,107490.0,1.48842486]
[1748494463264,0.22191888,107500.0,107490.0,0.04694442]
[1748494463480,0.22191888,107500.0,107490.0,0.31280125]
[1748494463720,0.41947413,107500.0,107490.0,0.12676]
[1748494463932,0.41947413,107500.0,107490.0,0.001]
[1748494464146,0.38737413,107500.0,107490.0,0.001]
[1748494464349,0.31297283,107500.0,107490.0,0.001]
[1748494464789,0.19536682,107490.0,107480.0,0.13520415]
[1748494465011,0.19536682,107490.0,107480.0,0.12576]
[1748494465222,0.19538501,107480.0,107470.0,1.07414797]
[1748494465431,0.19538501,107480.0,107470.0,0.8473148]
[1748494465641,0.19538501,107480.0,107470.0,0.41892502]
[1748494465861,0.19538501,107480.0,107470.0,0.54468502]
[1748494466069,0.19538501,107480.0,107470.0,0.88468502]
[1748494466288,0.17838501,107480.0,107470.0,0.88468502]
[1748494466488,0.18768889,107480.0,107470.0,0.88468502]
[1748494466703,0.18768889,107480.0,107470.0,0.97574093]
[1748494467136,0.18768889,107480.0,107470.0,0.83277395]
[1748494467355,0.18768889,107480.0,107470.0,0.95853395]
[1748494467814,0.29524284,107480.0,107470.0,0.004]
[1748494468048,0.65878284,107480.0,107470.0,0.004]
[1748494468718,0.19540318,107470.0,107460.0,0.12576]
[1748494468956,0.28645713,107470.0,107460.0,0.12576]
[1748494470260,0.21405225,107450.0,107440.0,0.74168]
[1748494470470,0.21405225,107450.0,107440.0,1.30641395]
[1748494470687,0.21405225,107450.0,107440.0,1.33298686]
[1748494470923,0.20474612,107450.0,107440.0,1.33298691]
[1748494471149,0.20474612,107450.0,107440.0,1.33298998]
[1748494471574,0.20474612,107450.0,107440.0,1.33348872]
[1748494471998,0.20474612,107450.0,107440.0,1.33448905]
[1748494472230,0.20474612,107450.0,107440.0,1.31724796]
[1748494472667,0.20474612,107450.0,107440.0,1.33449212]
[1748494472879,0.20474612,107450.0,107440.0,1.31724796]
[1748494473099,0.20474141,107460.0,107450.0,0.34]
[1748494473322,0.21404693,107460.0,107450.0,0.35913271]
[1748494473543,0.21404693,107460.0,107450.0,0.37638007]
[1748494473762,0.21404693,107460.0,107450.0,0.35913271]
[1748494474256,0.21504693,107460.0,107450.0,0.37637995]
[1748494474438,0.21504693,107460.0,107450.0,0.35913271]
[1748494474439,0.001,107460.0,107450.0,0.35913271]
[1748494474684,0.001,107460.0,107450.0,0.40808592]
[1748494474893,0.001,107460.0,107450.0,0.39083271]
[1748494475108,0.001,107460.0,107450.0,0.40809052]
[1748494475323,0.001,107460.0,107450.0,0.417397]
[1748494475546,0.04652302,107470.0,107450.0,0.417397]
[1748494475772,0.00930509,107460.0,107450.0,0.37639053]
[1748494475986,0.22331855,107470.0,107460.0,0.00930578]
[1748494476199,0.21401407,107470.0,107460.0,0.20472724]
[1748494476410,0.21401407,107470.0,107460.0,0.21403285]
[1748494476637,0.27626511,107490.0,107460.0,0.27321247]
[1748494476882,0.19536674,107490.0,107480.0,0.1953851]
[1748494477100,0.23010081,107500.0,107490.0,0.19536691]
[1748494477339,0.23010081,107500.0,107490.0,0.51652576]
[1748494477340,0.0161303,107500.0,107490.0,0.51652576]
[1748494477565,0.0440357,107500.0,107490.0,0.23124991]
[1748494477789,0.05333785,107500.0,107490.0,0.25038262]
[1748494478017,0.05333785,107500.0,107490.0,0.25968514]
[1748494478233,0.05348561,107500.0,107490.0,0.53700771]
[1748494478448,0.05348561,107500.0,107490.0,0.55428478]
[1748494478876,0.04418337,107500.0,107490.0,0.55428478]
[1748494479110,0.05348526,107500.0,107490.0,0.55428478]
[1748494479333,0.06278741,107500.0,107490.0,0.55430091]
[1748494479558,0.06278741,107500.0,107490.0,0.554326]
[1748494479768,0.06278741,107500.0,107490.0,0.53700771]
[1748494479985,0.06778741,107500.0,107490.0,0.55432588]
[1748494480469,0.0677881,107500.0,107490.0,0.55432588]
[1748494480696,0.23523118,107500.0,107490.0,0.43688004]
[1748494480927,0.23523118,107500.0,107490.0,0.31192004]
[1748494480928,0.21662714,107500.0,107490.0,0.31192004]
[1748494481165,0.21662714,107500.0,107490.0,0.43688106]
[1748494481602,0.21662714,107500.0,107490.0,0.52793641]
[1748494481821,0.21662714,107500.0,107490.0,0.52793647]
[1748494482037,0.21662714,107500.0,107490.0,0.52793652]
[1748494482258,0.21662714,107500.0,107490.0,0.51061395]
[1748494482496,0.21662714,107500.0,107490.0,0.52793365]
[1748494482724,0.21662714,107500.0,107490.0,0.41956]
[1748494483842,0.21662714,107500.0,107490.0,0.43687647]
[1748494484324,0.21662714,107500.0,107490.0,0.43687642]
[1748494484752,0.21662714,107500.0,107490.0,0.43687927]
[1748494485433,0.21662714,107500.0,107490.0,0.72330004]
[1748494485641,0.21662714,107500.0,107490.0,0.73691128]
[1748494485855,0.0212784,107500.0,107490.0,0.74621421]
[1748494486081,0.23523082,107500.0,107490.0,0.75551705]
[1748494486315,0.23523082,107500.0,107490.0,0.75551801]
[1748494486526,0.23523082,107500.0,107490.0,0.73819778]
[1748494487159,0.23523082,107500.0,107490.0,0.98714383]
[1748494487642,0.24453314,107500.0,107490.0,0.99644658]
[1748494488099,0.05848663,107500.0,107490.0,1.00574925]
[1748494488323,0.23523143,107500.0,107490.0,0.99644658]
[1748494488532,0.23523143,107500.0,107490.0,1.01378624]
[1748494488740,0.23523143,107500.0,107490.0,1.10484019]
[1748494488961,0.23523143,107500.0,107490.0,1.0968032]
[1748494489173,0.23523143,107500.0,107490.0,1.09553677]
[1748494489603,0.04918423,107500.0,107490.0,1.09553636]
[1748494489804,0.04918423,107500.0,107490.0,1.09553612]
[1748494490019,0.04918423,107500.0,107490.0,1.08750053]
[1748494490241,0.04918423,107500.0,107490.0,1.10483945]
[1748494490661,0.04918423,107500.0,107490.0,1.10483947]
[1748494490866,0.23523074,107500.0,107490.0,1.10483947]
[1748494491077,0.23523074,107500.0,107490.0,1.10483948]
[1748494491512,0.04918423,107500.0,107490.0,1.10483948]
[1748494491722,0.06778878,107500.0,107490.0,1.14644206]
[1748494492403,0.06778878,107500.0,107490.0,1.1302421]
[1748494492816,0.24453358,107500.0,107490.0,1.09553677]
[1748494493259,0.24453358,107500.0,107490.0,1.09553726]
[1748494493466,0.24453358,107500.0,107490.0,1.07819778]
[1748494494134,0.23523161,107500.0,107490.0,1.01378773]
[1748494494347,0.23523161,107500.0,107490.0,0.99644658]
[1748494494577,0.23523161,107500.0,107490.0,1.0137854]
[1748494494783,0.23523161,107500.0,107490.0,1.00448265]
[1748494495222,0.23523161,107500.0,107490.0,0.99518015]
[1748494495438,0.22592946,107500.0,107490.0,0.98587722]
[1748494495645,0.22592946,107500.0,107490.0,0.98587786]
[1748494495874,0.22592946,107500.0,107490.0,0.98587617]
[1748494496081,0.21662723,107500.0,107490.0,0.98587617]
[1748494496294,0.21662723,107500.0,107490.0,0.79050948]
[1748494496528,0.21662723,107500.0,107490.0,0.79981267]
[1748494496735,0.21662723,107500.0,107490.0,1.06889512]
[1748494497159,0.21662723,107500.0,107490.0,1.08623365]
[1748494497376,0.21662723,107500.0,107490.0,0.79163367]
[1748494497614,0.01789355,107500.0,107490.0,1.12692587]
[1748494497856,0.00935981,107520.0,107510.0,0.58533253]
[1748494498077,6e-05,107520.0,107510.0,0.93193253]
[1748494498304,6e-05,107520.0,107510.0,1.23455405]
[1748494498554,0.00935998,107520.0,107510.0,1.2345522]
[1748494498775,0.21397246,107520.0,107510.0,0.83795022]
[1748494498984,0.02796056,107520.0,107510.0,0.69622488]
[1748494499210,0.22117248,107520.0,107510.0,0.12496]
[1748494499437,0.01860334,107500.0,107490.0,0.93084323]
[1748494499729,0.02790506,107500.0,107490.0,0.68337659]
[1748494499952,0.00930163,107500.0,107490.0,0.36158333]
[1748494500160,0.02790531,107500.0,107490.0,0.79390106]
[1748494500385,0.03720746,107500.0,107490.0,1.10583288]
[1748494500600,0.02790531,107500.0,107490.0,1.10583288]
[1748494500819,0.02790531,107500.0,107490.0,1.08749076]
[1748494501035,0.02790531,107500.0,107490.0,1.10484078]
[1748494501258,0.01860334,107500.0,107490.0,1.10484078]
[1748494501477,0.21393374,107510.0,107500.0,0.20465055]
[1748494501701,0.21393374,107510.0,107500.0,0.24114626]
[1748494501924,0.02790394,107510.0,107500.0,0.24114626]
[1748494502145,0.21393314,107510.0,107500.0,0.24114635]
[1748494502363,0.20463203,107510.0,107500.0,0.36606635]
[1748494502578,0.20463203,107510.0,107500.0,0.34693398]
[1748494502579,0.19533066,107510.0,107500.0,0.34693398]
[1748494503033,0.1860292,107510.0,107500.0,0.34693503]
[1748494503489,0.1860292,107510.0,107500.0,0.35623709]
[1748494503708,0.01860213,107510.0,107500.0,0.66943999]
[1748494503925,0.03720417,107510.0,107500.0,0.76049394]
[1748494504137,0.03720417,107510.0,107500.0,0.7511924]
[1748494504358,0.03720417,107510.0,107500.0,0.75119343]
[1748494504359,0.04650624,107510.0,107500.0,0.75119343]
[1748494504585,0.03720522,107510.0,107500.0,0.75119357]
[1748494504823,0.03720522,107510.0,107500.0,0.76049548]
[1748494505488,0.20463203,107510.0,107500.0,0.43688507]
[1748494505709,0.20463203,107510.0,107500.0,0.02668013]
[1748494505926,0.20463203,107510.0,107500.0,0.13422232]